bitfinex/quotes_SOLUSD_20260109
["timestamp","ask_amount","ask_price","bid_price","bid_amount"]
[1767970094445,43.57120416,137.1,137.05,11.88060168]
[1767970094815,7.29454148,137.09,137.06,11.88060168]
[1767970095351,19.17514316,137.09,137.05,11.88060168]
[1767970095919,19.1761441,137.07,137.03,11.88060168]
[1767970096237,13.32,137.1,137.02,0.72442347]
[1767970096238,7.29522638,137.08,137.05,11.88060168]
[1767970096426,20.61446122,137.1,137.07,11.88060168]
[1767970096736,11.88060168,137.08,137.04,12.60502515]
[1767970097120,38.98953279,137.1,137.04,0.72442347]
[1767970097314,11.88060168,137.08,137.04,0.72442347]
[1767970097714,11.88060168,137.07,137.03,11.88060168]
[1767970098129,7.29551389,137.08,137.03,12.60502515]
[1767970098340,0.1455839,137.04,136.98,31.57020729]
[1767970098521,12.56952094,137.06,137.02,11.88060168]
[1767970098715,0.68891926,137.06,137.02,11.88060168]
[1767970099518,0.68891926,137.06,137.01,7.29862606]
[1767970099711,0.13471993,137.05,137.01,11.88060168]
[1767970100322,0.13471993,137.05,136.99,7.29940213]
[1767970100323,0.68337726,137.04,136.98,39.59546466]
[1767970100517,0.68337726,137.04,137.01,11.88060168]
[1767970100716,25.88952094,137.06,137.02,11.88060168]
[1767970101222,25.88952094,137.06,137.01,11.88060168]
[1767970101425,0.68337726,137.04,137.01,11.88060168]
[1767970101624,11.88060168,137.05,137.01,11.88060168]
[1767970101828,11.88060168,137.05,136.99,0.72442347]
[1767970102233,7.29767204,137.03,137.0,11.88060168]
[1767970102528,0.1455839,137.01,136.95,0.72442347]
[1767970102852,11.88060168,136.98,136.93,0.72442347]
[1767970103029,0.15601978,136.97,136.91,0.72442347]
[1767970103347,11.88060168,136.92,136.86,0.72442347]
[1767970103549,0.16604445,136.93,136.86,0.72442347]
[1767970103550,11.88060168,136.91,136.86,0.72442347]
[1767970103760,13.32,136.94,136.89,0.72442347]
[1767970103931,13.32,136.94,136.85,7.40709229]
[1767970103932,0.68891926,136.98,136.91,0.72442347]
[1767970104248,7.30246823,136.94,136.91,0.72442347]
[1767970104428,7.30246823,136.94,136.9,11.88060168]
[1767970104748,13.32,136.97,136.93,11.88060168]
[1767970104945,50.75364248,136.97,136.92,0.72442347]
[1767970105128,11.88060168,136.96,136.92,0.72442347]
[1767970105324,50.75364248,136.97,136.92,12.60502515]
[1767970105664,7.3008688,136.97,136.93,11.88060168]
[1767970105838,7.3008688,136.97,136.92,12.60502515]
[1767970106025,7.3008688,136.97,136.93,11.88060168]
[1767970106224,7.3008688,136.97,136.92,12.60502515]
[1767970106225,19.18147048,136.97,136.92,12.60502515]
[1767970106655,11.88060168,136.95,136.91,11.88060168]
[1767970107159,11.88060168,136.93,136.87,0.82442347]
[1767970107333,20.1456946,136.94,136.88,11.88060168]
[1767970107527,11.88060168,136.93,136.88,11.88060168]
[1767970107729,0.28432314,136.96,136.89,0.72442347]
[1767970107730,0.9732424,136.96,136.89,0.72442347]
[1767970108050,11.88060168,136.94,136.89,12.60502515]
[1767970108346,7.44857443,136.94,136.89,11.88060168]
[1767970108548,0.67262193,136.93,136.87,12.70502515]
[1767970108731,11.88060168,136.93,136.89,12.60502515]
[1767970109261,0.68891926,136.92,136.85,0.1]
[1767970109429,0.14216157,136.9,136.8,17.84836234]
[1767970109632,7.36902996,136.91,136.86,11.88060168]
[1767970109956,13.32,136.93,136.89,11.88060168]
[1767970110146,0.68891926,136.97,136.91,11.88060168]
[1767970110450,7.30100435,136.97,136.93,11.88060168]
[1767970110660,7.30100435,136.97,136.88,1.01489005]
[1767970110661,0.68891926,136.96,136.88,1.01489005]
[1767970110985,0.68891926,136.96,136.9,11.88060168]
[1767970110986,11.88060168,136.94,136.9,11.88060168]
[1767970111140,11.88060168,136.95,136.9,11.88060168]
[1767970111638,11.88060168,136.92,136.89,0.72442347]
[1767970111854,0.68891926,136.95,136.89,0.72442347]
[1767970112147,11.88060168,136.94,136.9,0.72442347]
[1767970112349,19.18360321,136.93,136.9,0.72442347]
[1767970112651,11.88060168,136.92,136.89,0.72442347]
[1767970112827,19.18360321,136.93,136.89,0.72442347]
[1767970113231,7.30300153,136.93,136.89,0.72442347]
[1767970113441,11.88060168,136.92,136.89,0.72442347]
[1767970113756,11.88060168,136.91,136.87,0.72498085]
[1767970114051,11.88060168,136.9,136.87,0.72498085]
[1767970114554,19.18573719,136.89,136.87,0.72498085]
[1767970114948,0.68551728,136.93,136.87,0.72498085]
[1767970115154,11.88060168,136.91,136.87,0.72498085]
[1767970115535,7.30353491,136.92,136.88,0.72498085]
[1767970115536,11.88060168,136.92,136.88,0.72498085]
[1767970115739,11.88060168,136.93,136.88,0.72498085]
[1767970115946,7.30287837,136.94,136.59,14.2623111]
[1767970116145,11.88060168,136.81,136.77,0.1]
[1767970116361,0.68551728,136.82,136.77,0.1]
[1767970116555,2.97936587,136.8,136.78,13.34]
[1767970116857,14.85996755,136.8,136.78,12.67343027]
[1767970117033,2.97936587,136.8,136.78,12.67343027]
[1767970117571,2.97936587,136.8,136.79,13.34]
[1767970117859,14.85996755,136.8,136.79,13.34]
[1767970118156,11.88060168,136.79,136.77,0.1]
[1767970118362,14.85996755,136.8,136.77,0.1]
[1767970118553,11.88060168,136.79,136.77,0.1]
[1767970118749,11.88060168,136.78,136.77,1e-08]
[1767970119068,2.97936587,136.8,136.77,1e-08]
[1767970119376,11.88060168,136.78,136.77,1e-08]
[1767970119532,0.68551728,136.77,136.66,0.73174301]
[1767970119853,11.88060168,136.77,136.71,18.28600302]
[1767970120062,0.68551728,136.79,136.73,7.3135948]
[1767970120248,10.28945837,136.8,136.73,13.34]
[1767970120436,2.97936587,136.8,136.74,19.19375072]
[1767970120639,2.97936587,136.8,136.74,25.88034478]
[1767970120835,10.28931653,136.8,136.73,7.31365243]
[1767970121044,11.88060168,136.78,136.72,7.31401835]
[1767970121342,11.88060168,136.77,136.73,13.34]
[1767970121743,11.88060168,136.76,136.72,13.34]
[1767970121949,0.68551728,136.79,136.72,25.22060168]
[1767970122174,11.88060168,136.79,136.73,0.73136839]
[1767970122459,11.88060168,136.79,136.74,13.34]
[1767970122673,7.31066681,136.79,136.72,7.31411088]
[1767970122837,7.34023969,136.77,136.74,13.34]
[1767970123238,15.33642378,136.79,136.74,12.84]
[1767970123460,15.33642378,136.79,136.73,7.34023969]
[1767970123461,7.31066681,136.79,136.73,7.34023969]
[1767970123668,7.99618409,136.79,136.73,7.31354709]
[1767970123845,7.34023969,136.76,136.73,7.31354709]
[1767970124045,7.34023969,136.75,136.74,13.34]
[1767970124240,26.27237386,136.79,136.71,13.34]
[1767970124241,0.68551728,136.77,136.71,13.34]
[1767970124463,7.34023969,136.73,136.72,13.34]
[1767970124645,25.58685658,136.79,136.72,13.34]
[1767970124646,7.34023969,136.76,136.72,13.34]
[1767970124847,7.34023969,136.75,136.72,20.65408083]
[1767970125056,7.34023969,136.73,136.69,0.73158241]
[1767970125248,7.34023969,136.72,136.69,7.31565015]
[1767970125456,7.34023969,136.72,136.67,19.12350281]
[1767970125457,0.68551728,136.75,136.7,13.34]
[1767970125768,7.34023969,136.73,136.68,32.94733392]
[1767970125942,0.68551728,136.75,136.69,13.34]
[1767970126143,0.68551728,136.75,136.7,13.34]
[1767970126352,0.68551728,136.75,136.68,25.60709423]
[1767970126353,7.34023969,136.73,136.71,13.34]
[1767970126556,7.99831881,136.75,136.71,13.34]
[1767970126841,7.34023969,136.72,136.67,0.1]
[1767970127043,7.34023969,136.72,136.68,13.34]
[1767970127237,0.68551728,136.74,136.68,20.65601073]
[1767970127443,7.34023969,136.72,136.68,20.65601073]
[1767970127668,7.34023969,136.72,136.69,13.34]
[1767970127867,7.34023969,136.71,136.67,7.4164275]
[1767970128070,7.34023969,136.71,136.7,13.34]
[1767970128589,7.97326003,136.73,136.67,14.75679135]
[1767970128742,7.34023969,136.71,136.68,13.34]
[1767970128943,0.65933195,136.73,136.68,20.65595088]
[1767970129177,0.65933195,136.73,136.7,7.31519681]
[1767970129344,0.65933195,136.77,136.72,7.34023969]
[1767970129546,7.34023969,136.74,136.7,25.60341919]
[1767970129740,0.65933195,136.77,136.7,25.60341919]
[1767970129945,0.65933195,136.77,136.72,7.34023969]
[1767970130163,7.99957164,136.77,136.71,13.34]
[1767970130376,7.99957164,136.76,136.72,13.34]
[1767970130577,7.34023969,136.73,136.69,7.31563447]
[1767970130873,0.65933195,136.7,136.67,7.41675435]
[1767970131048,7.31325019,136.74,136.7,13.34]
[1767970131244,0.65933195,136.76,136.7,13.34]
[1767970131446,0.65933195,136.76,136.69,0.73158241]
[1767970131660,7.34023969,136.73,136.68,25.60713871]
[1767970131949,0.65933195,136.75,136.69,14.07158241]
[1767970132154,0.65933195,136.77,136.69,14.07158241]
[1767970132364,0.65933195,136.77,136.7,13.34]
[1767970132669,7.99957164,136.72,136.71,13.34]
[1767970132876,0.65933195,136.74,136.71,13.34]
[1767970133058,7.34023969,136.73,136.71,13.34]
[1767970133265,0.65933195,136.72,136.67,7.41655913]
[1767970133479,0.65933195,136.74,136.68,20.65630759]
[1767970133694,0.65933195,136.74,136.69,13.34]
[1767970133852,26.32340455,136.76,136.69,13.34]
[1767970133853,7.34023969,136.71,136.69,13.34]
[1767970134055,26.32340455,136.76,136.67,7.41678769]
[1767970134056,0.65933195,136.7,136.67,7.41678769]
[1767970134254,0.65933195,136.74,136.68,13.34]
[1767970134579,0.65933195,136.73,136.68,20.59623461]
[1767970134885,0.65933195,136.74,136.69,13.34]
[1767970135052,7.34023969,136.73,136.69,13.34]
[1767970135252,0.65933195,136.74,136.68,7.31623461]
[1767970135460,7.99957164,136.72,136.69,13.34]
[1767970135677,0.65933195,136.72,136.7,13.34]
[1767970135892,7.34023969,136.73,136.7,13.34]
[1767970136055,7.34023969,136.72,136.7,13.34]
[1767970136372,0.65933195,136.74,136.7,13.34]
[1767970136582,7.34023969,136.73,136.68,25.60714744]
[1767970136777,0.65933195,136.74,136.69,13.34]
[1767970136976,0.65933195,136.76,136.69,14.07158241]
[1767970137276,0.65933195,136.75,136.69,14.07158241]
[1767970137462,7.34023969,136.74,136.7,13.34]
[1767970137659,0.65933195,136.75,136.7,13.34]
[1767970137856,0.65933195,136.78,136.7,20.68023969]
[1767970138059,7.34023969,136.74,136.71,13.34]
[1767970138270,7.34023969,136.72,136.68,7.316249]
[1767970138465,0.65933195,136.73,136.68,7.316249]
[1767970138653,0.65933195,136.73,136.69,13.34]
[1767970138852,1.39027267,136.75,136.69,20.65576086]
[1767970139076,7.34023969,136.74,136.69,27.99600055]
[1767970139251,0.65933195,136.75,136.69,38.94532117]
[1767970139452,7.34023969,136.73,136.69,20.65576086]
[1767970139677,7.34023969,136.73,136.69,7.31576086]
[1767970139857,7.34023969,136.73,136.7,13.36]
[1767970140058,0.65933195,136.74,136.7,13.36]
[1767970140257,0.73094072,136.76,136.71,13.36]
[1767970140258,7.99957164,136.73,136.71,13.36]
[1767970140450,0.65933195,136.72,136.68,7.31627457]
[1767970140656,7.99957164,136.73,136.69,20.67574947]
[1767970140884,0.65933195,136.71,136.68,7.31627456]
[1767970141061,7.34023969,136.71,136.7,13.36]
[1767970141380,7.34023969,136.71,136.67,7.41645918]
[1767970141677,0.65933195,136.74,136.68,13.36]
[1767970141867,0.65933195,136.71,136.68,13.36]
[1767970142071,0.65933195,136.7,136.68,13.36]
[1767970142372,7.34023969,136.71,136.68,13.36]
[1767970142568,0.73094072,136.74,136.68,13.36]
[1767970142569,0.65933195,136.73,136.68,13.36]
[1767970142875,13.99178796,136.77,136.69,13.36]
[1767970142876,7.34023969,136.7,136.69,13.36]
[1767970143071,0.68922,136.69,136.67,0.1]
[1767970143386,0.68922,136.71,136.68,11.14922]
[1767970143564,1.32016072,136.73,136.68,11.14922]
[1767970143872,7.34023969,136.7,136.69,13.36]
[1767970144077,7.34023969,136.72,136.69,14.02390035]
[1767970144254,7.34023969,136.71,136.64,0.66390035]
[1767970144460,7.34023969,136.7,136.66,0.66390035]
[1767970144668,0.099,136.74,136.66,0.66390035]
[1767970144868,0.099,136.74,136.67,13.36]
[1767970144869,7.34023969,136.7,136.67,13.36]
[1767970145274,7.34023969,136.69,136.66,7.98132917]
[1767970145553,0.099,136.69,136.65,13.36]
[1767970145768,0.58922,136.73,136.65,14.02390035]
[1767970146079,0.099,136.72,136.65,0.66390035]
[1767970146255,0.5843178,136.7,136.63,7.98284732]
[1767970146459,0.5843178,136.7,136.64,13.36]
[1767970146785,7.34023969,136.68,136.66,0.66390035]
[1767970147087,1.60448386,136.72,136.66,0.66390035]
[1767970147381,1.60448386,136.72,136.64,7.31840667]
[1767970147382,0.58922,136.71,136.64,0.66390035]
[1767970147582,7.34023969,136.67,136.65,13.36]
[1767970147780,0.58922,136.71,136.66,13.36]
[1767970148360,7.34023969,136.68,136.66,13.36]
[1767970148577,7.34023969,136.7,136.66,14.02390035]
[1767970148774,7.34023969,136.7,136.66,0.66390035]
[1767970148969,0.58922,136.75,136.68,0.66390035]
[1767970149169,1.32016072,136.77,136.71,0.66390035]
[1767970149383,7.34023969,136.76,136.72,13.36]
[1767970149683,7.34023969,136.73,136.69,0.66390035]
[1767970149883,7.34023969,136.71,136.67,0.66390035]
[1767970150066,7.34023969,136.72,136.68,13.36]
[1767970150381,0.73094072,136.76,136.7,0.66390035]
[1767970150578,0.73094072,136.77,136.7,0.66390035]
[1767970150776,7.34023969,136.74,136.71,0.66390035]
[1767970151002,0.73094072,136.77,136.73,0.66390035]
[1767970151280,7.34023969,136.75,136.71,0.66390035]
[1767970151480,7.34023969,136.73,136.72,13.36]
[1767970151682,0.10385317,136.77,136.72,13.36]
[1767970151891,7.34023969,136.74,136.7,7.97891749]
[1767970152063,7.34023969,136.72,136.69,7.97967244]
[1767970152378,0.83479389,136.76,136.69,0.66390035]
[1767970152682,0.83479389,136.76,136.7,20.675263]
[1767970152885,7.34023969,136.75,136.71,0.66390035]
[1767970153077,5.89023969,136.72,136.7,7.315263]
[1767970153387,0.68922,136.76,136.71,13.36]
[1767970153568,7.34023969,136.74,136.71,13.36]
[1767970153769,7.34023969,136.75,136.71,13.36]
[1767970154283,0.68922,136.76,136.71,13.36]
[1767970154492,7.34023969,136.75,136.71,13.36]
[1767970154983,7.34023969,136.73,136.69,0.66390035]
[1767970155174,7.34023969,136.73,136.7,13.36]
[1767970155372,7.34023969,136.72,136.71,13.36]
[1767970155567,7.34023969,136.72,136.66,1.39564336]
[1767970155568,7.34023969,136.72,136.7,13.36]
[1767970155768,7.34023969,136.71,136.7,13.36]
[1767970155970,7.34023969,136.72,136.7,13.36]
[1767970156173,7.34023969,136.71,136.67,18.95575879]
[1767970156372,7.34023969,136.71,136.66,7.34023969]
[1767970156373,0.68922,136.71,136.66,7.31736383]
[1767970156572,0.68922,136.73,136.67,7.31659188]
[1767970156773,7.34023969,136.72,136.67,26.272729]
[1767970156972,1.42016072,136.75,136.68,0.66390035]
[1767970157176,1.42016072,136.75,136.67,32.94906834]
[1767970157177,7.34023969,136.71,136.67,7.31659188]
[1767970157376,0.68922,136.71,136.68,13.36]
[1767970157576,1.42016072,136.74,136.68,13.36]
[1767970157886,0.68922,136.73,136.68,13.36]
[1767970158089,0.68922,136.73,136.68,21.36414004]
[1767970158090,7.34023969,136.73,136.68,21.36414004]
[1767970158385,7.34023969,136.75,136.71,0.66390035]
[1767970158589,7.34023969,136.74,136.69,0.66390035]
[1767970158767,7.34023969,136.74,136.69,8.00414004]
[1767970158969,0.68922,136.76,136.7,7.31528895]
[1767970159177,0.68922,136.76,136.7,15.31942899]
[1767970159495,7.34023969,136.76,136.71,0.66390035]
[1767970160073,7.34023969,136.75,136.71,0.66390035]
[1767970160693,0.68922,136.78,136.71,0.66390035]
[1767970160694,0.68922,136.78,136.71,8.00414004]
[1767970160876,0.68922,136.78,136.73,25.59789365]
[1767970161187,0.68922,136.78,136.74,13.36]
[1767970161488,7.34023969,136.77,136.74,13.36]
[1767970161688,0.68922,136.78,136.74,13.36]
[1767970161689,8.02945969,136.78,136.74,13.36]
[1767970162065,7.34023969,136.76,136.74,13.36]
[1767970162664,0.68922,136.75,136.71,7.31466118]
[1767970162869,0.68922,136.77,136.72,21.33763736]
[1767970163077,7.34023969,136.76,136.72,21.33763736]
[1767970163564,0.73094072,136.79,136.73,0.66390035]
[1767970163769,0.68922,136.81,136.72,21.33798289]
[1767970164073,7.30850145,136.83,136.72,21.33798289]
[1767970164074,0.68922,136.82,136.75,0.66390035]
[1767970164389,0.68922,136.81,136.75,0.66390035]
[1767970164591,7.34023969,136.79,136.75,0.66390035]
[1767970164780,7.34023969,136.81,136.76,0.66390035]
[1767970165088,7.34023969,136.78,136.77,13.36]
[1767970165386,7.34023969,136.79,136.77,13.36]
[1767970165590,7.34023969,136.8,136.77,13.36]
[1767970165791,0.68922,136.81,136.77,20.67117596]
[1767970165971,8.02945969,136.81,136.77,20.67117596]
[1767970166166,8.02945969,136.81,136.77,13.36]
[1767970166365,0.68922,136.81,136.77,20.67145051]
[1767970166568,8.02945969,136.81,136.77,20.67145051]
[1767970166779,8.02945969,136.83,136.78,0.66390035]
[1767970166968,0.68922,136.83,136.78,7.97441352]
[1767970167387,7.34023969,136.79,136.75,7.31248856]
[1767970167572,0.68922,136.8,136.76,13.36]
[1767970167774,0.68922,136.8,136.74,7.31297177]
[1767970167989,0.68922,136.8,136.77,13.36]
[1767970168195,7.34023969,136.78,136.77,13.36]
[1767970168499,0.68922,136.8,136.77,13.36]
[1767970168680,7.34023969,136.8,136.77,13.36]
[1767970169077,0.68922,136.82,136.77,13.36]
[1767970169292,7.34023969,136.8,136.77,20.67141923]
[1767970169593,0.68922,136.77,136.71,19.68161686]
[1767970169781,7.34023969,136.74,136.71,0.66390035]
[1767970169982,7.34023969,136.73,136.7,7.31509333]
[1767970170293,0.68922,136.76,136.71,20.67471989]
[1767970170486,0.68922,136.76,136.71,13.36]
[1767970170692,7.34023969,136.73,136.71,13.36]
[1767970171088,7.34023969,136.72,136.67,0.66390035]
[1767970171269,7.34023969,136.7,136.68,20.67614384]
[1767970171580,7.34023969,136.7,136.68,13.36]
[1767970171779,0.68922,136.73,136.69,13.36]
[1767970171969,7.34023969,136.72,136.69,13.36]
[1767970172478,7.34023969,136.73,136.69,14.02390035]
[1767970172684,0.68922,136.76,136.69,14.02390035]
[1767970172993,7.34023969,136.74,136.7,0.69067944]
[1767970173199,7.34023969,136.73,136.71,7.31475385]
[1767970173503,0.68922,136.76,136.7,8.0058207]
[1767970173693,0.68922,136.76,136.72,13.36]
[1767970173993,7.34023969,136.73,136.71,13.36]
[1767970174498,7.34023969,136.73,136.68,8.03091913]
[1767970174802,7.34023969,136.72,136.69,13.36]
[1767970175001,0.67292631,136.74,136.7,7.31526232]
[1767970175378,7.34023969,136.73,136.71,13.36]
[1767970175880,7.34023969,136.72,136.69,8.0063246]
[1767970176194,7.34023969,136.72,136.7,13.36]
[1767970176583,7.34023969,136.73,136.7,13.36]
[1767970176782,0.67292631,136.73,136.69,13.36]
[1767970177107,7.34023969,136.72,136.69,13.36]
[1767970177478,7.31283711,136.75,136.69,21.36626406]
[1767970177479,0.67292631,136.75,136.69,21.36626406]
[1767970177683,7.34023969,136.73,136.69,21.36626406]
[1767970177883,1.40386703,136.79,136.72,0.69067944]
[1767970178104,7.34023969,136.76,136.72,0.69067944]
[1767970178284,1.40386703,136.79,136.72,0.69067944]
[1767970178478,1.40386703,136.79,136.73,0.69067944]
[1767970178781,7.34023969,136.76,136.73,0.69067944]
[1767970178982,7.34023969,136.75,136.73,13.36]
[1767970179190,0.67292631,136.77,136.73,13.36]
[1767970179378,7.34023969,136.75,136.73,13.36]
[1767970179788,0.67292631,136.79,136.73,14.05067944]
[1767970179986,7.34023969,136.77,136.73,14.05067944]
[1767970180291,7.34023969,136.76,136.73,13.36]
[1767970180494,7.34023969,136.75,136.72,0.69067944]
[1767970180693,7.34023969,136.74,136.73,13.36]
[1767970180908,7.34023969,136.75,136.73,13.36]
[1767970181208,0.67292631,136.77,136.73,20.67367858]
[1767970181507,7.34023969,136.78,136.73,21.36435802]
[1767970181695,7.34023969,136.78,136.73,39.64856777]
[1767970182304,7.34023969,136.76,136.74,13.36]
[1767970182708,1.40386703,136.78,136.74,13.36]
[1767970183008,7.34023969,136.75,136.74,13.36]
[1767970183202,7.34023969,136.76,136.74,13.36]
[1767970183602,7.34023969,136.76,136.73,7.31361684]
[1767970183789,7.34023969,136.76,136.74,13.36]
[1767970183987,7.34023969,136.77,136.75,13.36]
[1767970184495,11.93070316,136.77,136.76,13.36]
[1767970184891,0.67292631,136.78,136.76,13.36]
[1767970185095,11.93070316,136.77,136.76,13.36]
[1767970185820,1.40386703,136.8,136.76,13.36]
[1767970186044,0.67292631,136.79,136.76,13.36]
[1767970186320,11.93070316,136.8,136.76,20.67207193]
[1767970186527,11.93070316,136.79,136.76,20.67207193]
[1767970186689,11.93070316,136.78,136.76,20.67207193]
[1767970187210,11.93070316,136.79,136.76,20.67207193]
[1767970187508,0.67292631,136.8,136.76,20.67207193]
[1767970187697,11.93070316,136.79,136.76,20.67207193]
[1767970187881,0.67292631,136.8,136.76,20.67207193]
[1767970188082,11.93070316,136.79,136.76,20.67207193]
[1767970188288,0.70507686,136.82,136.76,21.3597486]
[1767970188522,11.93070316,136.81,136.76,39.63994748]
[1767970188695,0.70507686,136.82,136.76,39.63994748]
[1767970189105,11.93070316,136.8,136.76,39.63994748]
[1767970189611,11.93070316,136.78,136.77,13.36]
[1767970189796,8.74523901,136.82,136.77,13.36]
[1767970189997,0.73094072,136.82,136.77,14.04767667]
[1767970190206,0.73094072,136.82,136.77,13.36]
[1767970190207,11.93070316,136.82,136.77,13.36]
[1767970190395,11.93070316,136.79,136.77,13.36]
[1767970190595,11.93070316,136.79,136.76,7.99943224]
[1767970190800,11.93070316,136.81,136.78,0.68767667]
[1767970190994,11.93070316,136.81,136.77,14.04767667]
[1767970191497,0.70507686,136.82,136.78,7.31101038]
[1767970191696,11.93070316,136.81,136.78,7.31101038]
[1767970191918,11.93070316,136.8,136.77,20.67132809]
[1767970192317,11.93070316,136.8,136.77,13.36]
[1767970192519,0.70507686,136.81,136.78,13.34]
[1767970192813,0.28432314,136.88,136.76,7.99953954]
[1767970192814,0.70507686,136.82,136.76,7.99953954]
[1767970193017,11.93070316,136.8,136.76,7.99953954]
[1767970193221,11.93070316,136.8,136.77,20.65150467]
[1767970193621,7.3077071,136.85,136.77,20.65150467]
[1767970193622,11.93070316,136.81,136.77,20.65150467]
[1767970194120,0.70507686,136.82,136.77,21.33918134]
[1767970194312,11.93070316,136.81,136.77,21.33918134]
[1767970195029,11.93070316,136.8,136.77,21.33918134]
[1767970195202,11.93070316,136.79,136.78,13.34]
[1767970195395,12.63578002,136.79,136.78,11.90585686]
[1767970195922,11.93070316,136.79,136.78,11.90585686]
[1767970196123,0.60001609,136.78,136.73,0.73136839]
[1767970196423,11.93070316,136.76,136.73,21.34126414]
[1767970196613,11.93070316,136.77,136.73,21.34126414]
[1767970196819,0.60001609,136.78,136.73,21.34126414]
[1767970196820,0.099,136.79,136.74,0.68767667]
[1767970197118,0.60001609,136.79,136.74,0.68767667]
[1767970197299,0.82994072,136.8,136.74,0.68767667]
[1767970197500,11.93070316,136.78,136.74,0.68767667]
[1767970198217,11.93070316,136.78,136.74,8.00079859]
[1767970198417,8.13992837,136.8,136.74,0.68767667]
[1767970198618,8.04092837,136.8,136.74,0.68767667]
[1767970198927,11.93070316,136.78,136.74,8.00081989]
[1767970199223,11.93070316,136.78,136.75,0.68767667]
[1767970199425,8.04092837,136.8,136.75,0.68767667]
[1767970199426,11.93070316,136.77,136.76,13.34]
[1767970199618,11.93070316,136.78,136.76,13.34]
[1767970199804,8.64094446,136.8,136.76,13.34]
[1767970200005,11.93070316,136.78,136.76,13.34]
[1767970200326,0.73094072,136.81,136.77,0.68767667]
[1767970200502,0.82994072,136.83,136.78,0.68767667]
[1767970200702,0.82994072,136.83,136.79,14.02767667]
[1767970200703,11.93070316,136.83,136.79,14.02767667]
[1767970200900,11.93070316,136.81,136.8,13.34]
[1767970201119,0.10401016,136.82,136.8,12.7389333]
[1767970201315,11.93070316,136.81,136.8,12.7389333]
[1767970201621,0.73094072,136.88,136.81,0.68767667]
[1767970201923,0.73094072,136.88,136.82,0.68767667]
[1767970202220,0.73094072,136.89,136.83,14.02767667]
[1767970202419,11.93070316,136.88,136.84,0.68767667]
[1767970202620,0.2,136.9,136.86,0.68767667]
[1767970202813,0.2,136.9,136.86,13.34]
[1767970203015,0.2,136.9,136.87,0.70546848]
[1767970203215,0.2,136.9,136.85,0.70546848]
[1767970203638,11.93070316,136.87,136.85,0.70546848]
[1767970203824,11.93070316,136.88,136.86,13.34]
[1767970204015,0.2,136.9,136.86,13.34]
[1767970204326,11.93070316,136.87,136.85,13.34]
[1767970204503,0.2,136.9,136.86,0.70546848]
[1767970204829,0.93094072,136.91,136.88,0.70546848]
[1767970204830,0.2,136.91,136.88,0.70546848]
[1767970205028,0.93094072,136.96,136.89,13.34]
[1767970205220,11.93070316,136.91,136.89,13.34]
[1767970205529,0.20296005,136.95,136.89,13.34]
[1767970205728,11.93070316,136.91,136.88,0.70546848]
[1767970205927,11.93070316,136.89,136.88,0.70546848]
[1767970206115,0.73094072,136.95,136.81,37.51362837]
[1767970206116,11.93070316,136.86,136.81,37.51362837]
[1767970206312,11.93070316,136.86,136.78,18.27655286]
[1767970206313,11.93070316,136.82,136.78,18.27655286]
[1767970206631,11.93070316,136.8,136.76,18.27972702]
[1767970206822,0.30061004,136.83,136.77,7.31152569]
[1767970207126,11.93070316,136.8,136.78,13.34]
[1767970207334,0.30061004,136.83,136.78,13.34]
[1767970207335,0.30061004,136.83,136.78,20.65100467]
[1767970207506,11.93070316,136.82,136.78,13.34]
[1767970207709,0.71848918,136.85,136.78,13.34]
[1767970207911,11.93070316,136.82,136.79,7.31041747]
[1767970208118,11.90070314,136.82,136.79,8.01588595]
[1767970208435,11.90070314,136.82,136.67,18.29145806]
[1767970208436,0.71848918,136.79,136.67,18.29145806]
[1767970208633,0.71848918,136.76,136.7,7.31492194]
[1767970209015,11.93070316,136.72,136.69,7.31564578]
[1767970209320,0.28432314,136.79,136.68,13.34]
[1767970209321,11.93070316,136.71,136.68,13.34]
[1767970209515,12.64919234,136.73,136.68,20.6562635]
[1767970209823,11.93070316,136.71,136.68,7.3162635]
[1767970210031,11.93070316,136.71,136.66,11.93070316]
[1767970210032,11.93070316,136.71,136.69,13.34]
[1767970210214,11.93070316,136.72,136.69,13.34]
[1767970210526,11.93070316,136.71,136.69,13.34]
[1767970211234,11.93070316,136.71,136.68,7.31629929]
[1767970211414,11.93070316,136.69,136.64,18.29598162]
[1767970211731,11.93070316,136.69,136.66,7.31702194]
[1767970211938,11.93070316,136.7,136.66,7.31702194]
[1767970212317,11.93070316,136.7,136.66,7.31743011]
[1767970212720,0.71848918,136.71,136.66,7.31743011]
[1767970212915,0.71848918,136.74,136.67,11.93070316]